fUST/lending_fUST_20250608
["ID","MTS","AMOUNT","RATE_DAILY","PERIOD"]
[364971369,1749370245813,-151.0,0.00019715,2]
[364971370,1749370245822,-600000.0,0.0001972,7]
[364971371,1749370245832,-1000.0,0.00019721,2]
[364971372,1749370245844,-440.0,0.00019726,2]
[364971373,1749370245854,-400.0,0.00019726,2]
[364971374,1749370245864,-440.0,0.00019726,2]
[364971375,1749370245874,-440.0,0.00019726,2]
[364971376,1749370245884,-440.0,0.00019726,2]
[364971377,1749370245893,-440.0,0.00019726,2]
[364971378,1749370245903,-440.0,0.00019726,2]
[364971379,1749370245913,-440.0,0.00019726,2]
[364971380,1749370245923,-440.0,0.00019726,2]
[364971381,1749370245932,-440.0,0.00019726,2]
[364971382,1749370245942,-452.40176926,0.00019726,2]
[364971383,1749370245952,-440.0,0.00019726,2]
[364971384,1749370245962,-440.0,0.00019726,2]
[364971385,1749370245971,-440.0,0.00019726,2]
[364971386,1749370245981,-420.0,0.00019726,2]
[364971387,1749370245990,-440.0,0.00019726,2]
[364971388,1749370246001,-543.10091304,0.00019726,2]
[364971389,1749370246010,-198.21779657,0.00019726,2]
[364971390,1749370246019,-440.0,0.00019726,2]
[364971391,1749370246029,-440.0,0.00019726,2]
[364971392,1749370246039,-440.0,0.00019726,2]
[364971393,1749370246049,-440.0,0.00019726,2]
[364971394,1749370246059,-440.0,0.00019726,2]
[364971395,1749370246068,-791.26,0.00019726,2]
[364971396,1749370246078,-1098.08,0.00019726,2]
[364971397,1749370246088,-440.0,0.00019726,2]
[364971398,1749370246098,-440.0,0.00019726,2]
[364971399,1749370246109,-2602.26,0.00019726,2]
[364971400,1749370246119,-420.0,0.00019726,2]
[364971401,1749370246128,-440.0,0.00019726,2]
[364971402,1749370246138,-440.0,0.00019726,2]
[364971403,1749370246149,-500.16,0.00019726,2]
[364971404,1749370246160,-440.0,0.00019726,2]
[364971405,1749370246170,-545.21,0.00019726,2]
[364971406,1749370246180,-440.0,0.00019726,2]
[364971407,1749370246189,-1193.65,0.00019726,2]
[364971408,1749370246199,-440.0,0.00019726,2]
[364971409,1749370246209,-440.0,0.00019726,2]
[364971410,1749370246220,-481.17,0.00019726,2]
[364971411,1749370246231,-1228.34,0.00019726,2]
[364971412,1749370246241,-420.0,0.00019726,2]
[364971413,1749370246251,-440.0,0.00019726,2]
[364971414,1749370246260,-419.90100698,0.00019726,2]
[364971416,1749370246271,-440.0,0.00019726,2]
[364971417,1749370246281,-420.0,0.00019726,2]
[364971418,1749370246291,-440.0,0.00019726,2]
[364971419,1749370246301,-440.0,0.00019726,2]
[364971420,1749370246311,-530.23756612,0.00019726,2]
[364971421,1749370246321,-350.0,0.00019726,2]
[364971422,1749370246331,-440.0,0.00019726,2]
[364971423,1749370246341,-440.0,0.00019726,2]
[364971424,1749370246351,-440.0,0.00019726,2]
[364971425,1749370246360,-389.69853494,0.00019726,2]
[364971426,1749370246370,-440.0,0.00019726,2]
[364971427,1749370246381,-440.0,0.00019726,2]
[364971428,1749370246391,-440.0,0.00019726,2]
[364971429,1749370246400,-1252.61,0.00019726,2]
[364971430,1749370246411,-522.81,0.00019726,2]
[364971432,1749370246420,-440.0,0.00019726,2]
[364971434,1749370246431,-440.0,0.00019726,2]
[364971435,1749370246442,-440.0,0.00019726,2]
[364971436,1749370246453,-681.62,0.00019726,2]
[364971437,1749370246463,-440.0,0.00019726,2]
[364971439,1749370246473,-440.0,0.00019726,2]
[364971440,1749370246483,-440.0,0.00019726,2]
[364971441,1749370246494,-440.0,0.00019726,2]
[364971442,1749370246504,-2207.65,0.00019726,2]
[364971443,1749370246514,-440.0,0.00019726,2]
[364971444,1749370246523,-1304.44,0.00019726,2]
[364971445,1749370246533,-3194.87,0.00019726,2]
[364971446,1749370246543,-440.0,0.00019726,2]
[364971447,1749370246554,-3087.95,0.00019726,2]
[364971448,1749370246565,-440.0,0.00019726,2]
[364971449,1749370246575,-908.71,0.00019726,2]
[364971450,1749370246585,-440.0,0.00019726,2]
[364971451,1749370246595,-915.87,0.00019726,2]
[364971452,1749370246604,-3150.35,0.00019726,2]
[364971453,1749370246614,-3113.45,0.00019726,2]
[364971454,1749370246624,-440.0,0.00019726,2]
[364971455,1749370246634,-440.0,0.00019726,2]
[364971456,1749370246644,-440.0,0.00019726,2]
[364971457,1749370246654,-440.0,0.00019726,2]
[364971458,1749370246664,-440.0,0.00019726,2]
[364971459,1749370246674,-440.0,0.00019726,2]
[364971460,1749370246684,-440.0,0.00019726,2]
[364971461,1749370246693,-1725.61,0.00019726,2]
[364971462,1749370246703,-934.54,0.00019726,2]
[364971463,1749370246713,-440.0,0.00019726,2]
[364971464,1749370246723,-440.0,0.00019726,2]
[364971465,1749370246733,-416.24098942,0.00019726,2]
[364971466,1749370246743,-2695.16,0.00019726,2]
[364971467,1749370246753,-440.0,0.00019726,2]
[364971468,1749370246763,-440.0,0.00019726,2]
[364971469,1749370246772,-440.0,0.00019726,2]
[364971470,1749370246782,-440.0,0.00019726,2]
[364971471,1749370246792,-1018.44,0.00019726,2]
[364971472,1749370246802,-440.0,0.00019726,2]
[364971473,1749370246811,-447.99635171,0.00019726,2]
[364971474,1749370246821,-440.0,0.00019726,2]
[364971475,1749370246832,-1024.06,0.00019726,2]
[364971476,1749370246842,-616.12524882,0.00019726,2]
[364971477,1749370246854,-503.15729933,0.00019755,2]
[364971478,1749370246864,-159.94047433,0.00019755,2]
[364971479,1749370246875,-500.0,0.00019773,2]
[364971480,1749370246884,-500.0,0.00019773,2]
[364971481,1749370246894,-1200.0,0.00019787,2]
[364971482,1749370246905,-150.0,0.00019888,2]
[364971483,1749370246914,-219.0,0.0002,2]
[364971484,1749370246925,-500.0,0.0002,30]
[364971485,1749370246935,-500.0,0.0002,30]
[364971486,1749370246945,-500.0,0.0002,30]
[364971487,1749370246955,-500.0,0.0002,30]
[364971488,1749370246965,-500.0,0.0002,30]
[364971489,1749370246974,-500.0,0.0002,30]
[364971490,1749370246984,-500.0,0.0002,30]
[364971491,1749370246994,-500.0,0.0002,30]
[364971492,1749370247003,-500.0,0.0002,30]
[364971493,1749370247013,-500.0,0.0002,30]
[364971494,1749370247023,-500.0,0.0002,30]
[364971495,1749370247032,-500.0,0.0002,30]
[364971496,1749370247042,-500.0,0.0002,30]
[364971497,1749370247052,-500.0,0.0002,30]
[364971498,1749370247062,-500.0,0.0002,30]
[364971499,1749370247073,-500.0,0.0002,30]
[364971500,1749370247082,-500.0,0.0002,30]
[364971501,1749370247092,-500.0,0.0002,30]
[364971502,1749370247102,-500.0,0.0002,30]
[364971503,1749370247112,-500.0,0.0002,30]
[364971504,1749370247122,-500.0,0.0002,30]
[364971505,1749370247132,-500.0,0.0002,30]
[364971506,1749370247143,-500.0,0.0002,30]
[364971507,1749370247153,-763.69,0.0002,30]
[364971508,1749370247164,-500.0,0.0002,30]
[364971509,1749370247174,-440.0,0.0002,2]
[364971510,1749370247184,-440.0,0.0002,2]
[364971511,1749370247194,-440.0,0.0002,2]
[364971512,1749370247204,-440.0,0.0002,2]
[364971513,1749370247214,-440.0,0.0002,2]
[364971514,1749370247224,-417.40629716,0.0002,2]
[364971515,1749370247233,-440.0,0.0002,2]
[364971516,1749370247243,-272.60177155,0.0002,2]
[364971517,1749370247254,-440.0,0.0002,2]
[364971518,1749370247264,-440.0,0.0002,2]
[364971519,1749370247274,-440.0,0.0002,2]
[364971520,1749370247284,-440.0,0.0002,2]
[364971521,1749370247294,-440.0,0.0002,2]
[364971522,1749370247304,-168.05769276,0.0002,2]
[364971523,1749370247314,-440.0,0.0002,2]
[364971524,1749370247324,-440.0,0.0002,2]
[364971525,1749370247333,-440.0,0.0002,2]
[364971526,1749370247344,-440.0,0.0002,2]
[364971527,1749370247354,-791.26,0.0002,2]
[364971528,1749370247363,-1098.08,0.0002,2]
[364971529,1749370247374,-440.0,0.0002,2]
[364971530,1749370247383,-315.11541396,0.0002,30]
[364971531,1749370247394,-440.0,0.0002,2]
[364971532,1749370247405,-2602.26,0.0002,2]
[364971533,1749370247415,-440.0,0.0002,2]
[364971534,1749370247425,-440.0,0.0002,2]
[364971535,1749370247435,-500.16,0.0002,2]
[364971536,1749370247446,-217.54005958,0.0002,2]
[364971537,1749370247455,-440.0,0.0002,2]
[364971538,1749370247466,-1193.65,0.0002,2]
[364971539,1749370247580,-440.0,0.0002,2]
[364971540,1749370247591,-440.0,0.0002,2]
[364971541,1749370247602,-481.17,0.0002,2]
[364971542,1749370247612,-1228.34,0.0002,2]
[364971543,1749370247622,-440.0,0.0002,2]
[364971544,1749370247632,-440.0,0.0002,2]
[364971545,1749370247642,-440.0,0.0002,2]
[364971546,1749370247652,-440.0,0.0002,2]
[364971547,1749370247662,-240.41196301,0.0002,2]
[364971548,1749370247672,-440.0,0.0002,2]
[364971549,1749370247682,-440.0,0.0002,2]
[364971550,1749370247692,-440.0,0.0002,2]
[364971551,1749370247703,-440.0,0.0002,2]
[364971552,1749370247713,-440.0,0.0002,2]
[364971553,1749370247723,-440.0,0.0002,2]
[364971554,1749370247733,-1252.61,0.0002,2]
[364971555,1749370247743,-522.81,0.0002,2]
[364971556,1749370247753,-440.0,0.0002,2]
[364971557,1749370247763,-440.0,0.0002,2]
[364971558,1749370247773,-440.0,0.0002,2]
[364971559,1749370247784,-681.62,0.0002,2]
[364971560,1749370247793,-159.53405183,0.0002,2]
[364971561,1749370247803,-440.0,0.0002,2]
[364971562,1749370247812,-440.0,0.0002,2]
[364971563,1749370247822,-380.0,0.0002,2]
[364971564,1749370247832,-2207.65,0.0002,2]
[364971565,1749370247842,-440.0,0.0002,2]
[364971566,1749370247854,-1304.44,0.0002,2]
[364971567,1749370247864,-3194.87,0.0002,2]
[364971568,1749370247874,-440.0,0.0002,2]
[364971569,1749370247884,-3087.95,0.0002,2]
[364971570,1749370247894,-440.0,0.0002,2]
[364971571,1749370247904,-908.71,0.0002,2]
[364971572,1749370247914,-440.0,0.0002,2]
[364971573,1749370247924,-915.87,0.0002,2]
[364971574,1749370247935,-3150.35,0.0002,2]
[364971575,1749370247945,-3113.45,0.0002,2]
[364971576,1749370247955,-440.0,0.0002,2]
[364971577,1749370247966,-440.0,0.0002,2]
[364971578,1749370247976,-440.0,0.0002,2]
[364971579,1749370247986,-440.0,0.0002,2]
[364971580,1749370247996,-440.0,0.0002,2]
[364971581,1749370248006,-440.0,0.0002,2]
[364971582,1749370248017,-454.31821386,0.0002,2]
[364971583,1749370248027,-1725.61,0.0002,2]
[364971584,1749370248038,-934.54,0.0002,2]
[364971585,1749370248048,-440.0,0.0002,2]
[364971586,1749370248058,-440.0,0.0002,2]
[364971587,1749370248068,-2695.16,0.0002,2]
[364971588,1749370248078,-440.0,0.0002,2]
[364971589,1749370248087,-440.0,0.0002,2]
[364971590,1749370248097,-519.87765026,0.0002,2]
[364971591,1749370248107,-440.0,0.0002,2]
[364971592,1749370248117,-1018.44,0.0002,2]
[364971593,1749370248127,-440.0,0.0002,2]
[364971594,1749370248136,-440.0,0.0002,2]
[364971595,1749370248146,-1024.06,0.0002,2]
[364971596,1749370248156,-1604.02,0.00020097,2]
[364971597,1749370248165,-11063.36847332,0.00020167,2]
[364971598,1749370248176,-225.480923,0.00020187,2]
[364971599,1749370248185,-5000.0,0.00020262,2]
[364971600,1749370248196,-16000.0,0.00020262,2]
[364971601,1749370248205,-1500.0,0.00020268,2]
[364971602,1749370248215,-440.0,0.00020273,2]
[364971603,1749370248225,-529.71826834,0.00020273,2]
[364971604,1749370248234,-268.75852373,0.00020273,2]
[364971605,1749370248244,-440.0,0.00020273,2]
[364971606,1749370248254,-451.2946965,0.00020273,2]
[364971607,1749370248263,-440.0,0.00020273,2]
[364971608,1749370248273,-440.0,0.00020273,2]
[364971609,1749370248283,-440.0,0.00020273,2]
[364971610,1749370248293,-440.0,0.00020273,2]
[364971611,1749370248303,-440.0,0.00020273,2]
[364971612,1749370248312,-440.0,0.00020273,2]
[364971613,1749370248322,-440.0,0.00020273,2]
[364971614,1749370248331,-212.07185193,0.00020273,2]
[364971615,1749370248342,-440.0,0.00020273,2]
[364971616,1749370248351,-791.26,0.00020273,2]
[364971617,1749370248361,-1098.08,0.00020273,2]
[364971618,1749370248371,-440.0,0.00020273,2]
[364971619,1749370248380,-440.0,0.00020273,2]
[364971620,1749370248390,-2602.26,0.00020273,2]
[364971621,1749370248400,-440.0,0.00020273,2]
[364971622,1749370248412,-440.0,0.00020273,2]
[364971623,1749370248422,-500.16,0.00020273,2]
[364971624,1749370248432,-440.0,0.00020273,2]
[364971625,1749370248442,-1193.65,0.00020273,2]
[364971626,1749370248452,-440.0,0.00020273,2]
[364971627,1749370248462,-440.0,0.00020273,2]
[364971628,1749370248472,-481.17,0.00020273,2]
[364971629,1749370248482,-1228.34,0.00020273,2]
[364971630,1749370248493,-440.0,0.00020273,2]
[364971631,1749370248502,-440.0,0.00020273,2]
[364971632,1749370248512,-440.0,0.00020273,2]
[364971633,1749370248522,-440.0,0.00020273,2]
[364971634,1749370248532,-440.0,0.00020273,2]
[364971635,1749370248543,-440.0,0.00020273,2]
[364971636,1749370248553,-440.0,0.00020273,2]
[364971637,1749370248563,-440.0,0.00020273,2]
[364971638,1749370248573,-440.0,0.00020273,2]
[364971639,1749370248583,-440.0,0.00020273,2]
[364971640,1749370248593,-1252.61,0.00020273,2]
[364971641,1749370248603,-522.81,0.00020273,2]
[364971642,1749370248613,-440.0,0.00020273,2]
[364971643,1749370248624,-440.0,0.00020273,2]
[364971644,1749370248633,-440.0,0.00020273,2]
[364971645,1749370248643,-681.62,0.00020273,2]
[364971646,1749370248653,-440.0,0.00020273,2]
[364971647,1749370248663,-440.0,0.00020273,2]
[364971648,1749370248672,-2207.65,0.00020273,2]
[364971649,1749370248683,-440.0,0.00020273,2]
[364971650,1749370248693,-1304.44,0.00020273,2]
[364971651,1749370248703,-3194.87,0.00020273,2]
[364971652,1749370248713,-410.0,0.00020273,2]
[364971653,1749370248723,-3087.95,0.00020273,2]
[364971654,1749370248733,-440.0,0.00020273,2]
[364971655,1749370248743,-908.71,0.00020273,2]
[364971656,1749370248753,-410.0,0.00020273,2]
[364971657,1749370248763,-915.87,0.00020273,2]
[364971658,1749370248773,-3150.35,0.00020273,2]
[364971659,1749370248783,-3113.45,0.00020273,2]
[364971660,1749370248793,-440.0,0.00020273,2]
[364971661,1749370248803,-440.0,0.00020273,2]
[364971662,1749370248812,-400.0,0.00020273,2]
[364971663,1749370248822,-440.0,0.00020273,2]
[364971664,1749370248835,-440.0,0.00020273,2]
[364971665,1749370248847,-440.0,0.00020273,2]
[364971666,1749370248857,-1725.61,0.00020273,2]
[364971667,1749370248866,-934.54,0.00020273,2]
[364971668,1749370248876,-440.0,0.00020273,2]
[364971669,1749370248887,-440.0,0.00020273,2]
[364971670,1749370248896,-2695.16,0.00020273,2]
[364971671,1749370248906,-440.0,0.00020273,2]
[364971672,1749370248916,-440.0,0.00020273,2]
[364971673,1749370248927,-440.0,0.00020273,2]
[364971674,1749370248938,-1018.44,0.00020273,2]
[364971675,1749370248947,-440.0,0.00020273,2]
[364971676,1749370248959,-1024.06,0.00020273,2]
[364971677,1749370248968,-1335.0,0.00020505,2]
[364971678,1749370248978,-1335.0,0.00020508,2]
[364971679,1749370248988,-1335.0,0.00020508,2]
[364971680,1749370248997,-1335.0,0.00020513,2]
[364971681,1749370249007,-221.95830964,0.00020547,2]
[364971682,1749370249017,-440.0,0.00020547,2]
[364971683,1749370249027,-440.0,0.00020547,2]
[364971684,1749370249036,-440.0,0.00020547,2]
[364971685,1749370249046,-440.0,0.00020547,2]
[364971686,1749370249056,-440.0,0.00020547,2]
[364971687,1749370249066,-440.0,0.00020547,2]
[364971688,1749370249075,-440.0,0.00020547,2]
[364971689,1749370249085,-440.0,0.00020547,2]
[364971690,1749370249095,-440.0,0.00020547,2]
[364971691,1749370249104,-500.0,0.00020547,2]
[364971692,1749370249114,-791.26,0.00020547,2]
[364971693,1749370249124,-1098.08,0.00020547,2]
[364971694,1749370249134,-440.0,0.00020547,2]
[364971695,1749370249143,-440.0,0.00020547,2]
[364971696,1749370249153,-2602.26,0.00020547,2]
[364971697,1749370249162,-440.0,0.00020547,2]
[364971698,1749370249171,-440.0,0.00020547,2]
[364971699,1749370249181,-500.16,0.00020547,2]
[364971700,1749370249191,-440.0,0.00020547,2]
[364971701,1749370249201,-1193.65,0.00020547,2]
[364971702,1749370249210,-440.0,0.00020547,2]
[364971703,1749370249219,-440.0,0.00020547,2]
[364971704,1749370249229,-481.17,0.00020547,2]
[364971705,1749370249239,-1228.34,0.00020547,2]
[364971706,1749370249249,-440.0,0.00020547,2]
[364971707,1749370249258,-440.0,0.00020547,2]
[364971708,1749370249268,-440.0,0.00020547,2]
[364971709,1749370249277,-440.0,0.00020547,2]
[364971710,1749370249287,-440.0,0.00020547,2]
[364971711,1749370249297,-440.0,0.00020547,2]
[364971712,1749370249307,-440.0,0.00020547,2]
[364971713,1749370249317,-440.0,0.00020547,2]
[364971714,1749370249327,-440.0,0.00020547,2]
[364971715,1749370249337,-440.0,0.00020547,2]
[364971716,1749370249347,-1252.61,0.00020547,2]
[364971717,1749370249357,-522.81,0.00020547,2]
[364971718,1749370249367,-440.0,0.00020547,2]
[364971719,1749370249378,-440.0,0.00020547,2]
[364971720,1749370249388,-440.0,0.00020547,2]
[364971721,1749370249398,-681.62,0.00020547,2]
[364971722,1749370249408,-440.0,0.00020547,2]
[364971723,1749370249418,-440.0,0.00020547,2]
[364971724,1749370249428,-2207.65,0.00020547,2]
[364971725,1749370249438,-569.99914638,0.00020547,2]
[364971726,1749370249448,-1304.44,0.00020547,2]
[364971727,1749370249457,-3194.87,0.00020547,2]
[364971728,1749370249467,-3087.95,0.00020547,2]
[364971729,1749370249478,-440.0,0.00020547,2]
[364971730,1749370249488,-908.71,0.00020547,2]
[364971731,1749370249598,-915.87,0.00020547,2]
[364971732,1749370249608,-3150.35,0.00020547,2]
[364971733,1749370249618,-3113.45,0.00020547,2]
[364971734,1749370249628,-440.0,0.00020547,2]
[364971735,1749370249638,-440.0,0.00020547,2]
[364971736,1749370249648,-440.0,0.00020547,2]
[364971737,1749370249657,-440.0,0.00020547,2]
[364971738,1749370249667,-440.0,0.00020547,2]
[364971739,1749370249677,-1725.61,0.00020547,2]
[364971740,1749370249686,-934.54,0.00020547,2]
[364971741,1749370249696,-440.0,0.00020547,2]
[364971742,1749370249706,-440.0,0.00020547,2]
[364971743,1749370249716,-2695.16,0.00020547,2]
[364971744,1749370249728,-440.0,0.00020547,2]
[364971745,1749370249739,-440.0,0.00020547,2]
[364971746,1749370249749,-298.04696269,0.00020547,2]
[364971747,1749370249759,-1018.44,0.00020547,2]
[364971748,1749370249771,-440.0,0.00020547,2]
[364971749,1749370249782,-1024.06,0.00020547,2]
[364971750,1749370249794,-500.0,0.00020548,2]
[364971751,1749370249806,-500.0,0.00020548,2]
[364971752,1749370249816,-500.0,0.00020548,2]
[364971753,1749370249826,-500.0,0.00020548,2]
[364971754,1749370249835,-500.0,0.00020548,2]
[364971755,1749370249850,-500.0,0.00020548,2]
[364971756,1749370249862,-500.0,0.00020548,2]
[364971757,1749370249872,-500.0,0.00020548,2]
[364971758,1749370249883,-500.0,0.00020548,2]
[364971759,1749370249892,-500.0,0.00020548,2]
[364971760,1749370249902,-500.0,0.00020548,2]
[364971761,1749370249912,-500.0,0.00020548,2]
[364971762,1749370249922,-500.0,0.00020548,2]
[364971763,1749370249931,-500.0,0.00020548,2]
[364971764,1749370249941,-565.73490512,0.00020548,2]
[364971765,1749370249951,-500.0,0.00020548,2]
[364971766,1749370249960,-500.0,0.00020548,2]
[364971767,1749370249969,-1335.0,0.00020577,2]
[364971768,1749370249980,-1335.0,0.00020597,2]
[364971769,1749370249990,-1787.52,0.000206,2]
[364971770,1749370250000,-42565.21,0.000206,2]
[364971771,1749370250009,-1032.51,0.000206,2]
[364971772,1749370250019,-1335.0,0.0002061,2]
[364971773,1749370250029,-1335.0,0.00020614,2]
[364971774,1749370250039,-1335.0,0.0002065,2]
[364971775,1749370250048,-1335.0,0.00020679,2]
[364971776,1749370250058,-1335.0,0.0002069,2]
[364971777,1749370250068,-1335.0,0.00020694,2]
[364971778,1749370250077,-1335.0,0.00020695,2]
[364971779,1749370250087,-1335.0,0.00020701,2]
[364971780,1749370250097,-11063.36847332,0.00020714,2]
[364971781,1749370250107,-1335.0,0.00020714,2]
[364971782,1749370250117,-1335.0,0.00020749,2]
[364971783,1749370250126,-1335.0,0.00020752,2]
[364971784,1749370250136,-1335.0,0.00020759,2]
[364971785,1749370250146,-1335.0,0.00020799,2]
[364971786,1749370250155,-1335.0,0.00020809,2]
[364971787,1749370250164,-5000.0,0.0002081,2]
[364971788,1749370250175,-2000.0,0.00020816,2]
[364971789,1749370250185,-440.0,0.00020821,2]
[364971790,1749370250194,-440.0,0.00020821,2]
[364971791,1749370250205,-581.8,0.00020821,2]
[364971792,1749370250216,-160.0,0.00020821,2]
[364971793,1749370250225,-440.0,0.00020821,2]
[364971794,1749370250235,-440.0,0.00020821,2]
[364971795,1749370250246,-440.0,0.00020821,2]
[364971796,1749370250255,-440.0,0.00020821,2]
[364971797,1749370250266,-440.0,0.00020821,2]
[364971798,1749370250276,-791.26,0.00020821,2]
[364971799,1749370250287,-1098.08,0.00020821,2]
[364971800,1749370250296,-440.0,0.00020821,2]
[364971801,1749370250306,-440.0,0.00020821,2]
[364971802,1749370250316,-2602.26,0.00020821,2]
[364971803,1749370250326,-440.0,0.00020821,2]
[364971804,1749370250337,-440.0,0.00020821,2]
[364971805,1749370250347,-500.16,0.00020821,2]
[364971806,1749370250357,-440.0,0.00020821,2]
[364971807,1749370250367,-1193.65,0.00020821,2]
[364971808,1749370250377,-440.0,0.00020821,2]
[364971809,1749370250386,-440.0,0.00020821,2]
[364971810,1749370250397,-481.17,0.00020821,2]
[364971811,1749370250407,-1228.34,0.00020821,2]
[364971812,1749370250417,-440.0,0.00020821,2]
[364971813,1749370250427,-440.0,0.00020821,2]
[364971814,1749370250437,-440.0,0.00020821,2]
[364971815,1749370250447,-440.0,0.00020821,2]
[364971816,1749370250457,-440.0,0.00020821,2]
[364971817,1749370250467,-440.0,0.00020821,2]
[364971818,1749370250477,-440.0,0.00020821,2]
[364971819,1749370250487,-440.0,0.00020821,2]
[364971820,1749370250497,-440.0,0.00020821,2]
[364971821,1749370250507,-152.48,0.00020821,2]
[364971822,1749370250518,-1252.61,0.00020821,2]
[364971823,1749370250528,-522.81,0.00020821,2]
[364971824,1749370250538,-440.0,0.00020821,2]
[364971825,1749370250548,-440.0,0.00020821,2]
[364971826,1749370250558,-440.0,0.00020821,2]
[364971827,1749370250568,-681.62,0.00020821,2]
[364971828,1749370250578,-440.0,0.00020821,2]
[364971829,1749370250588,-440.0,0.00020821,2]
[364971830,1749370250598,-2207.65,0.00020821,2]
[364971831,1749370250608,-1304.44,0.00020821,2]
[364971832,1749370250618,-3194.87,0.00020821,2]
[364971833,1749370250627,-3087.95,0.00020821,2]
[364971834,1749370250637,-440.0,0.00020821,2]
[364971835,1749370250646,-908.71,0.00020821,2]
[364971836,1749370250657,-915.87,0.00020821,2]
[364971837,1749370250667,-3150.35,0.00020821,2]
[364971838,1749370250677,-3113.45,0.00020821,2]
[364971839,1749370250687,-440.0,0.00020821,2]
[364971840,1749370250696,-448.69481526,0.00020821,2]
[364971841,1749370250705,-440.0,0.00020821,2]
[364971842,1749370250715,-440.0,0.00020821,2]
[364971843,1749370250725,-440.0,0.00020821,2]
[364971844,1749370250734,-1725.61,0.00020821,2]
[364971845,1749370250743,-934.54,0.00020821,2]
[364971846,1749370250753,-457.09119795,0.00020821,2]
[364971847,1749370250762,-326.81485453,0.00020821,2]
[364971848,1749370250772,-2695.16,0.00020821,2]
[364971849,1749370250781,-268.22574546,0.00020821,2]
[364971850,1749370250791,-440.0,0.00020821,2]
[364971851,1749370250800,-1018.44,0.00020821,2]
[364971852,1749370250810,-440.0,0.00020821,2]
[364971853,1749370250820,-1024.06,0.00020821,2]
[364971854,1749370250830,-1335.0,0.00020824,2]
[364971855,1749370250839,-1335.0,0.00020829,2]
[364971856,1749370250853,-1335.0,0.0002083,2]
[364971857,1749370250863,-1335.0,0.00020834,2]
[364971858,1749370250872,-1200.0,0.00020883,2]
[364971859,1749370250881,-1335.0,0.00020891,2]
[364971860,1749370250894,-223.0315306,0.00020969,2]
[364971861,1749370250903,-2138.69,0.0002097,2]
[364971862,1749370250912,-188.0,0.00021,3]
[364971863,1749370250925,-160.0,0.00021045,3]
[364971864,1749370250935,-440.0,0.00021095,2]
[364971865,1749370250945,-336.41135818,0.00021095,2]
[364971866,1749370250955,-440.0,0.00021095,2]
[364971867,1749370250966,-440.0,0.00021095,2]
[364971868,1749370250975,-440.0,0.00021095,2]
[364971869,1749370250984,-440.0,0.00021095,2]
[364971870,1749370250994,-440.0,0.00021095,2]
[364971871,1749370251003,-500.0,0.00021095,3]
[364971872,1749370251013,-791.26,0.00021095,2]